fUSD/lending_fUSD_20241023
["ID","MTS","AMOUNT","RATE_DAILY","PERIOD"]
[340704711,1729695106947,-500.0,0.00052262,120]
[340704712,1729695106957,-500.0,0.00052262,120]
[340704713,1729695106966,-533.17,0.00052262,120]
[340704714,1729695106976,-557.53,0.00052262,120]
[340704715,1729695106986,-500.0,0.00052262,2]
[340704716,1729695106996,-500.0,0.00052262,120]
[340704717,1729695107006,-496.22234663,0.00052262,120]
[340704718,1729695107015,-500.0,0.00052262,120]
[340704719,1729695107026,-500.0,0.00052262,120]
[340704720,1729695107035,-500.0,0.00052262,120]
[340704721,1729695107044,-761.83,0.00052262,120]
[340704722,1729695107054,-500.0,0.00052262,120]
[340704723,1729695107063,-500.0,0.00052262,120]
[340704724,1729695107073,-500.0,0.00052262,120]
[340704725,1729695107082,-500.0,0.00052262,120]
[340704726,1729695107091,-500.0,0.00052262,120]
[340704727,1729695107101,-535.76653952,0.00052262,120]
[340704728,1729695107111,-500.0,0.00052262,120]
[340704729,1729695107120,-500.0,0.00052262,120]
[340704730,1729695107129,-500.0,0.00052262,120]
[340704731,1729695107139,-1259.92,0.00052262,120]
[340704732,1729695107148,-500.0,0.00052262,120]
[340704733,1729695107158,-500.0,0.00052262,120]
[340704734,1729695107167,-500.0,0.00052262,120]
[340704735,1729695107176,-500.0,0.00052262,120]
[340704736,1729695107185,-500.0,0.00052262,120]
[340704737,1729695107195,-500.0,0.00052262,120]
[340704738,1729695107204,-500.0,0.00052262,120]
[340704739,1729695107214,-500.0,0.00052262,120]
[340704740,1729695107223,-500.0,0.00052262,120]
[340704741,1729695107232,-500.0,0.00052262,120]
[340704742,1729695107242,-500.0,0.00052262,120]
[340704743,1729695107252,-233.78128538,0.00052262,120]
[340704744,1729695107261,-500.0,0.00052262,120]
[340704745,1729695107271,-500.0,0.00052262,120]
[340704746,1729695107280,-257.34065117,0.00052262,120]
[340704747,1729695107290,-591.95,0.00052262,120]
[340704748,1729695107299,-500.0,0.00052262,120]
[340704749,1729695107309,-1926.93,0.00052262,120]
[340704750,1729695107319,-500.0,0.00052262,120]
[340704751,1729695107328,-500.0,0.00052262,120]
[340704752,1729695107337,-1953.12,0.00052262,120]
[340704753,1729695107346,-500.0,0.00052262,120]
[340704754,1729695107358,-1316.14,0.00052262,120]
[340704755,1729695107368,-513.64,0.00052262,120]
[340704756,1729695107377,-1902.26,0.00052262,120]
[340704757,1729695107386,-500.0,0.00052262,120]
[340704758,1729695107396,-699.33,0.00052262,120]
[340704759,1729695107404,-2403.72,0.00052262,120]
[340704760,1729695107414,-686.38,0.00052262,120]
[340704761,1729695107423,-500.0,0.00052262,120]
[340704762,1729695107432,-486.62055179,0.00052262,120]
[340704763,1729695107442,-631.69,0.00052262,120]
[340704764,1729695107451,-500.0,0.00052262,120]
[340704765,1729695107461,-2091.96,0.00052262,120]
[340704766,1729695107470,-549.51,0.00052262,120]
[340704767,1729695107480,-501.15,0.00052262,120]
[340704768,1729695107489,-2666.93,0.00052262,120]
[340704769,1729695107499,-1895.2,0.00052262,120]
[340704770,1729695107509,-500.0,0.00052262,120]
[340704771,1729695107519,-639.01,0.00052262,120]
[340704772,1729695107528,-2056.13,0.00052262,120]
[340704773,1729695107538,-500.0,0.00052262,120]
[340704774,1729695107547,-739.87,0.00052262,120]
[340704775,1729695107556,-500.0,0.00052263,120]
[340704776,1729695107566,-500.0,0.00052263,120]
[340704777,1729695107575,-651.7,0.00052263,120]
[340704778,1729695107584,-500.0,0.00052263,120]
[340704779,1729695107594,-500.0,0.00052263,120]
[340704780,1729695107605,-505.6,0.00052263,120]
[340704781,1729695107615,-531.83,0.00052263,120]
[340704782,1729695107624,-861.3,0.00052263,120]
[340704783,1729695107633,-645.91,0.00052263,120]
[340704784,1729695107642,-500.0,0.00052263,120]
[340704785,1729695107652,-1300.94,0.00052263,120]
[340704786,1729695107661,-2414.78,0.00052263,120]
[340704787,1729695107670,-500.0,0.00052263,120]
[340704788,1729695107679,-500.0,0.00052263,120]
[340704789,1729695107688,-500.0,0.00052263,120]
[340704790,1729695107697,-500.0,0.00052263,120]
[340704791,1729695107706,-500.0,0.00052263,120]
[340704792,1729695107883,-1666.47,0.00052263,120]
[340704793,1729695107893,-500.0,0.00052263,120]
[340704794,1729695107903,-2110.0,0.00052294,2]
[340704795,1729695107913,-13026.65441899,0.000523,120]
[340704796,1729695107922,-583.37,0.00052329,30]
[340704797,1729695107931,-359.67,0.00052329,30]
[340704798,1729695107941,-1038.31,0.00052333,120]
[340704799,1729695107950,-500.0,0.00052333,120]
[340704800,1729695107960,-1396.2,0.00052333,120]
[340704801,1729695107970,-2499.88,0.00052333,120]
[340704802,1729695107980,-581.14,0.00052333,120]
[340704803,1729695107989,-2403.29,0.00052333,120]
[340704804,1729695107999,-2393.31,0.00052333,120]
[340704805,1729695108008,-1078.45,0.00052333,120]
[340704806,1729695108018,-1462.44,0.00052333,120]
[340704807,1729695108028,-865.81,0.00052333,120]
[340704808,1729695108037,-596.71,0.00052333,120]
[340704809,1729695108047,-1434.43,0.00052333,120]
[340704810,1729695108057,-539.87,0.00052333,120]
[340704811,1729695108067,-6123.06,0.00052333,120]
[340704812,1729695108077,-500.0,0.00052333,120]
[340704813,1729695108086,-500.0,0.00052333,120]
[340704814,1729695108096,-551.7,0.00052334,120]
[340704815,1729695108107,-500.0,0.00052334,120]
[340704816,1729695108117,-500.0,0.00052334,120]
[340704817,1729695108126,-1279.4,0.00052334,120]
[340704818,1729695108136,-541.69,0.00052334,120]
[340704819,1729695108145,-500.0,0.00052334,120]
[340704820,1729695108155,-500.0,0.00052334,120]
[340704821,1729695108164,-183.89087673,0.00052334,120]
[340704822,1729695108173,-500.0,0.00052334,120]
[340704823,1729695108183,-500.0,0.00052334,120]
[340704824,1729695108192,-800.5,0.00052334,120]
[340704825,1729695108202,-829.74,0.00052334,120]
[340704826,1729695108211,-500.0,0.00052334,120]
[340704827,1729695108220,-831.97,0.00052334,120]
[340704828,1729695108230,-500.0,0.00052334,120]
[340704829,1729695108240,-3068.62,0.00052334,120]
[340704830,1729695108250,-2062.02,0.00052334,120]
[340704831,1729695108259,-636.42,0.00052334,120]
[340704832,1729695108269,-632.86,0.00052334,120]
[340704833,1729695108279,-521.15,0.00052334,120]
[340704834,1729695108288,-500.0,0.00052334,120]
[340704835,1729695108298,-500.0,0.00052334,120]
[340704836,1729695108307,-1010.38,0.00052334,120]
[340704837,1729695108317,-500.0,0.00052334,120]
[340704838,1729695108327,-500.0,0.00052334,120]
[340704839,1729695108336,-829.76,0.00052334,120]
[340704840,1729695108346,-710.82,0.00052334,120]
[340704841,1729695108357,-500.0,0.00052334,120]
[340704842,1729695108367,-500.0,0.00052334,120]
[340704843,1729695108377,-500.0,0.00052334,120]
[340704844,1729695108386,-500.0,0.00052334,120]
[340704845,1729695108396,-500.0,0.00052334,120]
[340704846,1729695108405,-500.0,0.00052334,120]
[340704847,1729695108415,-500.0,0.00052334,120]
[340704848,1729695108425,-153.042613,0.00052334,120]
[340704849,1729695108435,-152.467185,0.00052334,120]
[340704850,1729695108444,-2091.95,0.00052334,120]
[340704851,1729695108454,-285.083403,0.00052334,120]
[340704852,1729695108463,-405.89748,0.00052334,120]
[340704853,1729695108473,-15318.09,0.00052334,120]
[340704854,1729695108483,-500.0,0.00052334,120]
[340704855,1729695108492,-696.58,0.00052334,120]
[340704856,1729695108501,-500.0,0.00052334,120]
[340704857,1729695108511,-612.4209649,0.00052334,120]
[340704858,1729695108521,-956.6,0.00052334,120]
[340704859,1729695108530,-500.0,0.00052334,120]
[340704860,1729695108540,-229.96423388,0.00052334,120]
[340704861,1729695108550,-500.0,0.00052334,120]
[340704862,1729695108559,-1237.23,0.00052334,120]
[340704863,1729695108569,-500.0,0.00052334,120]
[340704864,1729695108578,-500.0,0.00052334,120]
[340704865,1729695108588,-500.0,0.00052334,120]
[340704866,1729695108599,-500.0,0.00052334,120]
[340704867,1729695108610,-500.0,0.00052334,120]
[340704868,1729695108620,-500.0,0.00052334,120]
[340704869,1729695108630,-5655.78,0.00052334,21]
[340704870,1729695108640,-500.0,0.00052334,120]
[340704871,1729695108649,-500.0,0.00052334,120]
[340704872,1729695108659,-500.0,0.00052334,120]
[340704873,1729695108668,-1801.94,0.00052334,120]
[340704874,1729695108678,-1551.48,0.00052334,120]
[340704875,1729695108687,-500.0,0.00052334,120]
[340704876,1729695108697,-946.91,0.00052334,120]
[340704877,1729695108706,-2527.52,0.00052334,120]
[340704878,1729695108715,-1036.64,0.00052334,120]
[340704879,1729695108725,-500.0,0.00052334,120]
[340704880,1729695108735,-500.0,0.00052334,120]
[340704881,1729695108745,-2104.19,0.00052334,120]
[340704882,1729695108754,-500.0,0.00052334,120]
[340704883,1729695108763,-500.0,0.00052334,120]
[340704884,1729695108773,-500.0,0.00052334,120]
[340704885,1729695108783,-514.44,0.00052334,120]
[340704886,1729695108792,-500.0,0.00052335,120]
[340704887,1729695108803,-500.0,0.00052335,120]
[340704888,1729695108812,-500.0,0.00052335,120]
[340704889,1729695108825,-500.0,0.00052335,120]
[340704890,1729695108834,-546.83,0.00052335,120]
[340704891,1729695108844,-527.01,0.00052335,120]
[340704892,1729695108854,-633.57,0.00052335,120]
[340704893,1729695108864,-500.0,0.00052335,120]
[340704894,1729695108873,-500.0,0.00052335,120]
[340704895,1729695108882,-548.76,0.00052335,120]
[340704896,1729695108893,-500.0,0.00052335,120]
[340704897,1729695108903,-500.0,0.00052335,120]
[340704898,1729695108913,-500.0,0.00052335,120]
[340704899,1729695108922,-500.0,0.00052335,120]
[340704900,1729695108931,-500.0,0.00052335,120]
[340704901,1729695108940,-500.0,0.00052335,120]
[340704902,1729695108950,-552.51,0.00052335,120]
[340704903,1729695108959,-500.0,0.00052335,120]
[340704904,1729695108968,-1010.74,0.00052335,120]
[340704905,1729695108977,-226.36,0.00052335,120]
[340704906,1729695108987,-500.0,0.00052335,120]
[340704907,1729695108997,-500.0,0.00052335,120]
[340704908,1729695109006,-500.0,0.00052335,120]
[340704909,1729695109015,-664.87,0.00052335,120]
[340704910,1729695109023,-1025.87,0.00052335,120]
[340704911,1729695109033,-500.0,0.00052335,120]
[340704912,1729695109042,-500.0,0.00052335,120]
[340704913,1729695109051,-500.0,0.00052335,120]
[340704914,1729695109061,-500.0,0.00052335,120]
[340704915,1729695109070,-500.0,0.00052335,120]
[340704916,1729695109079,-588.83,0.00052335,120]
[340704917,1729695109089,-2381.92,0.00052335,120]
[340704918,1729695109098,-500.0,0.00052335,120]
[340704919,1729695109108,-1507.06,0.00052335,120]
[340704920,1729695109118,-500.0,0.00052335,120]
[340704921,1729695109127,-3850.95,0.00052335,120]
[340704922,1729695109137,-500.0,0.00052335,120]
[340704923,1729695109146,-618.02,0.00052335,120]
[340704924,1729695109155,-500.0,0.00052335,120]
[340704925,1729695109165,-1937.11,0.00052335,120]
[340704926,1729695109174,-2061.54,0.00052335,120]
[340704927,1729695109184,-500.0,0.00052335,120]
[340704928,1729695109193,-2726.69,0.00052335,120]
[340704929,1729695109203,-500.0,0.00052335,120]
[340704930,1729695109212,-500.0,0.00052335,120]
[340704931,1729695109221,-812.34,0.00052335,120]
[340704932,1729695109231,-840.01,0.00052335,120]
[340704933,1729695109240,-1694.03,0.00052335,120]
[340704934,1729695109250,-1245.48,0.00052335,120]
[340704935,1729695109259,-500.0,0.00052335,120]
[340704936,1729695109270,-500.0,0.00052335,120]
[340704937,1729695109279,-1202.0,0.00052335,120]
[340704938,1729695109288,-2671.09,0.00052335,120]
[340704939,1729695109298,-500.0,0.00052335,120]
[340704940,1729695109309,-500.0,0.00052342,120]
[340704941,1729695109318,-500.0,0.00052342,120]
[340704942,1729695109328,-150.0,0.000524,120]
[340704943,1729695109338,-215.2279674,0.000524,2]
[340704944,1729695109347,-1100.98650182,0.000524,2]
[340704945,1729695109358,-409.16108576,0.000524,11]
[340704946,1729695109368,-500.0,0.00052435,120]
[340704947,1729695109377,-517.46,0.00052435,120]
[340704948,1729695109387,-500.0,0.00052435,120]
[340704949,1729695109396,-500.0,0.00052435,120]
[340704950,1729695109406,-688.94,0.00052435,120]
[340704951,1729695109415,-3187.68,0.00052435,120]
[340704952,1729695109425,-720.0,0.00052435,120]
[340704953,1729695109435,-1671.38,0.00052435,120]
[340704954,1729695109444,-1870.15,0.00052435,120]
[340704955,1729695109454,-548.44,0.00052435,120]
[340704956,1729695109463,-639.46,0.00052435,120]
[340704957,1729695109473,-500.0,0.00052435,120]
[340704958,1729695109483,-949.63,0.00052435,120]
[340704959,1729695109493,-5070.58,0.00052435,120]
[340704960,1729695109503,-2860.91,0.00052435,120]
[340704961,1729695109513,-4127.93,0.00052435,120]
[340704962,1729695109522,-500.0,0.00052436,120]
[340704963,1729695109532,-500.0,0.00052436,120]
[340704964,1729695109541,-500.0,0.00052436,120]
[340704965,1729695109551,-158.92701405,0.00052436,120]
[340704966,1729695109561,-500.0,0.00052436,120]
[340704967,1729695109570,-500.0,0.00052436,120]
[340704968,1729695109579,-500.0,0.00052436,120]
[340704969,1729695109589,-500.0,0.00052436,120]
[340704970,1729695109600,-500.0,0.00052436,120]
[340704971,1729695109615,-500.0,0.00052436,120]
[340704972,1729695109624,-500.0,0.00052436,120]
[340704973,1729695109635,-500.0,0.00052436,120]
[340704974,1729695109644,-500.0,0.00052436,120]
[340704975,1729695109653,-704.8,0.00052436,120]
[340704976,1729695109663,-851.17,0.00052436,120]
[340704977,1729695109672,-500.0,0.00052436,120]
[340704978,1729695109682,-1610.91,0.00052436,120]
[340704979,1729695109692,-2404.26,0.00052436,120]
[340704980,1729695109701,-500.0,0.00052436,120]
[340704981,1729695109711,-2023.4,0.00052436,120]
[340704982,1729695109720,-610.2,0.00052436,120]
[340704983,1729695109730,-1452.47,0.00052436,120]
[340704984,1729695109739,-831.56,0.00052436,120]
[340704985,1729695109749,-319.70552972,0.00052436,120]
[340704986,1729695109758,-623.53,0.00052436,120]
[340704987,1729695109767,-500.0,0.00052436,120]
[340704988,1729695109777,-777.0,0.00052436,120]
[340704989,1729695109786,-590.11,0.00052436,120]
[340704990,1729695109796,-20597.28552564,0.0005244,30]
[340704991,1729695109805,-462.7853167,0.000525,2]
[340704992,1729695109814,-250000.0,0.000525,120]
[340704993,1729695109823,-222.57770832,0.00052509,120]
[340704994,1729695109836,-500.0,0.00052509,120]
[340704995,1729695109845,-500.0,0.00052524,120]
[340704996,1729695109858,-722.51,0.00052524,120]
[340704997,1729695109867,-1345.84,0.00052524,120]
[340704998,1729695109876,-1084.74,0.00052524,120]
[340704999,1729695109886,-500.0,0.00052524,120]
[340705000,1729695109895,-500.0,0.00052524,120]
[340705001,1729695109904,-1845.24,0.00052524,120]
[340705002,1729695109913,-841.4,0.00052524,120]
[340705003,1729695109923,-500.0,0.00052524,120]
[340705004,1729695109933,-678.77,0.00052524,120]
[340705005,1729695109943,-564.76,0.00052524,120]
[340705006,1729695109952,-550.03,0.00052524,120]
[340705007,1729695109962,-500.0,0.00052524,120]
[340705008,1729695109971,-531.72,0.00052524,120]
[340705009,1729695109981,-500.0,0.00052524,120]
[340705010,1729695109991,-1168.65,0.00052524,120]
[340705011,1729695110001,-500.0,0.00052524,120]
[340705012,1729695110010,-500.0,0.00052524,120]
[340705013,1729695110020,-500.0,0.00052524,120]
[340705014,1729695110029,-500.0,0.00052524,120]
[340705015,1729695110038,-500.0,0.00052524,120]
[340705016,1729695110047,-500.0,0.00052524,120]
[340705017,1729695110057,-186.15922312,0.00052524,120]
[340705018,1729695110066,-582.29,0.00052524,120]
[340705019,1729695110075,-500.0,0.00052524,120]
[340705020,1729695110084,-500.0,0.00052524,120]
[340705021,1729695110093,-500.0,0.00052524,120]
[340705022,1729695110102,-500.0,0.00052524,120]
[340705023,1729695110113,-500.0,0.00052524,120]
[340705024,1729695110123,-500.0,0.00052524,120]
[340705025,1729695110131,-500.0,0.00052524,120]
[340705026,1729695110141,-735.4,0.00052524,120]
[340705027,1729695110150,-868.01,0.00052524,7]
[340705028,1729695110160,-1768.35,0.00052524,120]
[340705029,1729695110169,-500.0,0.00052524,120]
[340705030,1729695110179,-500.0,0.00052524,120]
[340705031,1729695110188,-812.19,0.00052524,120]
[340705032,1729695110198,-201.49977523,0.00052524,120]
[340705033,1729695110207,-500.0,0.00052524,120]
[340705034,1729695110216,-521.61,0.00052524,120]
[340705035,1729695110226,-500.0,0.00052524,120]
[340705036,1729695110235,-641.46,0.00052524,120]
[340705037,1729695110244,-500.0,0.00052524,120]
[340705038,1729695110253,-500.0,0.00052524,120]
[340705039,1729695110263,-683.15,0.00052524,120]
[340705040,1729695110272,-500.0,0.00052524,120]
[340705041,1729695110281,-500.0,0.00052524,120]
[340705042,1729695110291,-500.0,0.00052524,120]
[340705043,1729695110300,-500.0,0.00052524,120]
[340705044,1729695110309,-534.35,0.00052524,120]
[340705045,1729695110319,-500.0,0.00052524,120]
[340705046,1729695110328,-549.24,0.00052524,120]
[340705047,1729695110338,-947.82,0.00052524,120]
[340705048,1729695110347,-717.45,0.00052524,120]
[340705049,1729695110357,-500.0,0.00052524,120]
[340705050,1729695110367,-500.0,0.00052524,120]
[340705051,1729695110377,-500.0,0.00052524,120]
[340705052,1729695110386,-500.0,0.00052524,120]
[340705053,1729695110396,-500.0,0.00052524,120]
[340705054,1729695110405,-500.0,0.00052524,120]
[340705055,1729695110415,-297.24765589,0.00052524,120]
[340705056,1729695110425,-387.78127525,0.00052524,120]
[340705057,1729695110435,-500.0,0.00052524,120]
[340705058,1729695110444,-909.83,0.00052524,120]
[340705059,1729695110454,-500.0,0.00052524,120]
[340705060,1729695110464,-500.0,0.00052524,120]
[340705061,1729695110474,-500.0,0.00052524,120]
[340705062,1729695110483,-810.49,0.00052524,120]
[340705063,1729695110493,-500.0,0.00052524,120]
[340705064,1729695110502,-500.0,0.00052524,120]
[340705065,1729695110511,-500.0,0.00052524,120]
[340705066,1729695110522,-638.91,0.00052524,120]
[340705067,1729695110531,-500.0,0.00052524,120]
[340705068,1729695110541,-500.0,0.00052524,120]
[340705069,1729695110551,-500.0,0.00052524,120]
[340705070,1729695110561,-500.0,0.00052524,120]
[340705071,1729695110571,-500.0,0.00052524,120]
[340705072,1729695110581,-500.0,0.00052524,120]
[340705073,1729695110590,-500.0,0.00052524,120]
[340705074,1729695110600,-500.0,0.00052524,120]
[340705075,1729695110611,-500.0,0.00052524,14]
[340705076,1729695110621,-500.0,0.00052524,120]
[340705077,1729695110631,-500.0,0.00052524,120]
[340705078,1729695110641,-500.0,0.00052524,120]
[340705079,1729695110650,-495.36877457,0.00052524,120]
[340705080,1729695110660,-500.0,0.00052524,120]
[340705081,1729695110669,-500.0,0.00052524,120]
[340705082,1729695110679,-413.95165401,0.00052524,120]
[340705083,1729695110688,-500.0,0.00052524,120]
[340705084,1729695110697,-500.0,0.00052524,120]
[340705085,1729695110707,-1263.1,0.00052524,120]
[340705086,1729695110716,-500.0,0.00052524,120]
[340705087,1729695110726,-420.42348058,0.00052524,120]
[340705088,1729695110735,-500.0,0.00052524,120]
[340705089,1729695110744,-564.29,0.00052524,120]
[340705090,1729695110754,-500.0,0.00052524,120]
[340705091,1729695110763,-557.88,0.00052524,120]
[340705092,1729695110773,-500.0,0.00052524,120]
[340705093,1729695110782,-500.0,0.00052524,120]
[340705094,1729695110791,-500.0,0.00052524,120]
[340705095,1729695110800,-686.88,0.00052524,120]
[340705096,1729695110810,-585.56,0.00052524,120]
[340705097,1729695110819,-500.0,0.00052524,120]
[340705098,1729695110830,-500.0,0.00052524,120]
[340705099,1729695110840,-676.0,0.00052524,120]
[340705100,1729695110849,-500.0,0.00052524,120]
[340705101,1729695110859,-659.49,0.00052524,120]
[340705102,1729695110869,-500.0,0.00052524,120]
[340705103,1729695111039,-500.0,0.00052524,120]
[340705104,1729695111049,-500.0,0.00052524,120]
[340705105,1729695111058,-1865.84,0.00052524,120]
[340705106,1729695111068,-500.0,0.00052524,120]
[340705107,1729695111077,-500.0,0.00052524,120]
[340705108,1729695111086,-500.0,0.00052525,5]
[340705109,1729695111095,-537.46,0.00052525,120]
[340705110,1729695111105,-500.0,0.00052525,120]
[340705111,1729695111119,-500.0,0.00052525,120]
[340705112,1729695111129,-662.0,0.00052525,120]
[340705113,1729695111138,-791.08,0.00052525,120]
[340705114,1729695111147,-500.0,0.00052525,120]
[340705115,1729695111156,-500.0,0.00052525,120]
[340705116,1729695111167,-500.0,0.00052525,120]
[340705117,1729695111177,-763.78,0.00052525,120]
[340705118,1729695111187,-500.0,0.00052525,120]
[340705119,1729695111196,-571.59,0.00052525,120]
[340705120,1729695111207,-500.0,0.00052525,120]
[340705121,1729695111216,-500.0,0.00052525,120]
[340705122,1729695111226,-500.0,0.00052525,120]
[340705123,1729695111237,-500.0,0.00052525,120]
[340705124,1729695111251,-500.0,0.00052525,120]
[340705125,1729695111263,-805.88,0.00052525,120]
[340705126,1729695111273,-500.0,0.00052525,120]
[340705127,1729695111285,-1500.0,0.0005253,120]
[340705128,1729695111296,-500.0,0.00052536,120]
[340705129,1729695111305,-500.0,0.00052536,120]
[340705130,1729695111316,-633.36,0.00052536,120]
[340705131,1729695111326,-674.13,0.00052536,120]
[340705132,1729695111335,-1233.24,0.00052536,7]
[340705133,1729695111345,-500.0,0.00052536,120]
[340705134,1729695111356,-500.0,0.00052536,120]
[340705135,1729695111366,-500.0,0.00052536,60]
[340705136,1729695111376,-500.0,0.00052536,120]
[340705137,1729695111385,-500.0,0.00052536,120]
[340705138,1729695111396,-500.0,0.00052536,120]
[340705139,1729695111406,-500.0,0.00052536,120]
[340705140,1729695111416,-500.0,0.00052536,120]
[340705141,1729695111425,-500.0,0.00052536,120]
[340705142,1729695111435,-390.89690417,0.00052536,120]
[340705143,1729695111444,-500.0,0.00052536,120]
[340705144,1729695111453,-623.29,0.00052536,120]
[340705145,1729695111462,-500.0,0.00052536,120]
[340705146,1729695111472,-500.0,0.00052536,120]
[340705147,1729695111481,-500.0,0.00052536,120]
[340705148,1729695111490,-616.53,0.00052536,120]
[340705149,1729695111500,-500.0,0.00052536,120]
[340705150,1729695111510,-500.0,0.00052536,120]
[340705151,1729695111519,-500.0,0.00052536,120]
[340705152,1729695111529,-500.0,0.00052536,120]
[340705153,1729695111539,-533.17,0.00052536,120]
[340705154,1729695111549,-557.53,0.00052536,120]
[340705155,1729695111559,-559.11149089,0.00052536,2]
[340705156,1729695111569,-500.0,0.00052536,120]
[340705157,1729695111579,-500.0,0.00052536,120]
[340705158,1729695111588,-500.0,0.00052536,120]
[340705159,1729695111598,-500.0,0.00052536,120]
[340705160,1729695111610,-761.83,0.00052536,120]
[340705161,1729695111620,-290.45934459,0.00052536,120]
[340705162,1729695111630,-500.0,0.00052536,120]
[340705163,1729695111640,-500.0,0.00052536,120]
[340705164,1729695111650,-358.12816013,0.00052536,120]
[340705165,1729695111659,-500.0,0.00052536,120]
[340705166,1729695111669,-500.0,0.00052536,120]
[340705167,1729695111678,-500.0,0.00052536,120]
[340705168,1729695111688,-500.0,0.00052536,120]
[340705169,1729695111698,-1259.92,0.00052536,120]
[340705170,1729695111708,-500.0,0.00052536,120]
[340705171,1729695111719,-500.0,0.00052536,120]
[340705172,1729695111728,-500.0,0.00052536,120]
[340705173,1729695111739,-500.0,0.00052536,120]
[340705174,1729695111748,-500.0,0.00052536,120]
[340705175,1729695111758,-500.0,0.00052536,120]
[340705176,1729695111767,-500.0,0.00052536,120]
[340705177,1729695111778,-610.196183,0.00052536,120]
[340705178,1729695111788,-593.7704111,0.00052536,120]
[340705179,1729695111798,-500.0,0.00052536,120]
[340705180,1729695111808,-500.0,0.00052536,120]
[340705181,1729695111817,-500.0,0.00052536,120]
[340705182,1729695111831,-500.0,0.00052536,120]
[340705183,1729695111840,-591.95,0.00052536,120]
[340705184,1729695111850,-306.51797926,0.00052536,120]
[340705185,1729695111861,-1926.93,0.00052536,120]
[340705186,1729695111872,-500.0,0.00052536,120]
[340705187,1729695111882,-500.0,0.00052536,120]
[340705188,1729695111893,-1953.12,0.00052536,120]
[340705189,1729695111905,-500.0,0.00052536,120]
[340705190,1729695111918,-1316.14,0.00052536,120]
[340705191,1729695111930,-513.64,0.00052536,120]
[340705192,1729695111941,-1902.26,0.00052536,120]
[340705193,1729695111951,-500.0,0.00052536,120]
[340705194,1729695111961,-699.33,0.00052536,120]
[340705195,1729695111971,-2403.72,0.00052536,120]
[340705196,1729695111982,-686.38,0.00052536,120]
[340705197,1729695111992,-500.0,0.00052536,120]
[340705198,1729695112004,-631.69,0.00052536,120]
[340705199,1729695112016,-500.0,0.00052536,120]
[340705200,1729695112028,-2091.96,0.00052536,120]
[340705201,1729695112039,-549.51,0.00052536,120]
[340705202,1729695112049,-501.15,0.00052536,120]
[340705203,1729695112060,-2666.93,0.00052536,120]
[340705204,1729695112071,-1895.2,0.00052536,120]
[340705205,1729695112081,-500.0,0.00052536,120]
[340705206,1729695112090,-639.01,0.00052536,120]
[340705207,1729695112101,-2056.13,0.00052536,120]
[340705208,1729695112111,-500.0,0.00052536,120]
[340705209,1729695112121,-739.87,0.00052536,120]
[340705210,1729695112130,-500.0,0.00052537,120]